fUSD/lending_fUSD_20240720
["ID","MTS","AMOUNT","RATE_DAILY","PERIOD"]
[332696083,1721452326329,-500.0,0.00034246,14]
[332696084,1721452326339,-4325.23,0.00034246,14]
[332696085,1721452326350,-738.58,0.00034246,14]
[332696086,1721452326359,-814.05,0.00034246,14]
[332696087,1721452326369,-731.2,0.00034246,14]
[332696088,1721452326382,-1471.14,0.00034246,14]
[332696089,1721452326392,-4935.97,0.00034246,14]
[332696090,1721452326401,-3510.37,0.00034246,14]
[332696091,1721452326410,-1229.29,0.00034246,14]
[332696092,1721452326420,-500.0,0.00034246,14]
[332696093,1721452326429,-1164.69,0.00034246,14]
[332696094,1721452326440,-3419.7,0.00034246,14]
[332696095,1721452326450,-795.79,0.00034246,14]
[332696096,1721452326461,-1370.44,0.00034246,14]
[332696097,1721452326471,-5518.78,0.00034246,14]
[332696098,1721452326481,-500.0,0.00034246,14]
[332696099,1721452326490,-500.0,0.00034246,14]
[332696100,1721452326500,-855.69,0.00034246,14]
[332696101,1721452326511,-1428.43,0.00034246,14]
[332696102,1721452326520,-1414.58,0.00034246,14]
[332696103,1721452326529,-500.0,0.00034246,14]
[332696104,1721452326538,-1024.94,0.00034246,14]
[332696105,1721452326548,-1661.1,0.00034246,14]
[332696106,1721452326557,-1024.94,0.00034246,14]
[332696107,1721452326567,-500.0,0.00034246,14]
[332696108,1721452326576,-867.72,0.00034246,14]
[332696109,1721452326586,-500.0,0.00034246,14]
[332696110,1721452326597,-5718.78,0.00034246,14]
[332696111,1721452326689,-601.33,0.00034246,14]
[332696112,1721452326699,-1256.52,0.00034246,14]
[332696113,1721452326708,-2364.4,0.00034246,14]
[332696114,1721452326718,-1122.57,0.00034246,14]
[332696115,1721452326727,-500.0,0.00034246,14]
[332696116,1721452326736,-3777.43,0.00034246,14]
[332696117,1721452326744,-1287.89,0.00034246,14]
[332696118,1721452326754,-500.0,0.00034246,14]
[332696119,1721452326763,-2909.95,0.00034246,14]
[332696120,1721452326773,-500.0,0.00034246,14]
[332696121,1721452326782,-500.0,0.00034246,14]
[332696122,1721452326792,-519.36,0.00034246,14]
[332696123,1721452326802,-500.0,0.00034246,14]
[332696124,1721452326811,-7748.76,0.00034246,14]
[332696125,1721452326820,-2623.21,0.00034246,14]
[332696126,1721452326830,-3248.84,0.00034246,14]
[332696127,1721452326839,-3223.85,0.00034246,14]
[332696128,1721452326848,-753.17,0.00034246,14]
[332696129,1721452326858,-500.0,0.00034246,14]
[332696130,1721452326867,-1040.19,0.00034246,14]
[332696131,1721452326877,-1843.55,0.00034246,14]
[332696132,1721452326887,-5092.61,0.00034246,14]
[332696133,1721452326897,-500.0,0.00034246,14]
[332696134,1721452326908,-985.71,0.00034246,14]
[332696135,1721452326920,-2260.04,0.00034246,14]
[332696136,1721452326932,-500.0,0.00034246,14]
[332696137,1721452326942,-500.0,0.00034246,14]
[332696138,1721452326954,-1121.01,0.00034246,14]
[332696139,1721452326965,-1503.86,0.00034246,14]
[332696140,1721452326974,-1524.14,0.00034246,14]
[332696141,1721452326983,-500.0,0.00034246,14]
[332696142,1721452326993,-690.64,0.00034246,14]
[332696143,1721452327002,-3751.65,0.00034246,14]
[332696144,1721452327012,-1947.42,0.00034246,14]
[332696145,1721452327023,-500.0,0.00034246,14]
[332696146,1721452327034,-950.08,0.00034246,14]
[332696147,1721452327044,-1504.54,0.00034246,14]
[332696148,1721452327055,-500.0,0.00034246,14]
[332696149,1721452327064,-2533.37,0.00034246,14]
[332696150,1721452327074,-500.0,0.00034246,14]
[332696151,1721452327084,-896.76,0.00034246,14]
[332696152,1721452327093,-500.0,0.00034246,14]
[332696153,1721452327102,-552.56,0.00034246,14]
[332696154,1721452327112,-14489.0,0.00034246,14]
[332696155,1721452327122,-1465.63,0.00034246,14]
[332696156,1721452327132,-698.57,0.00034246,14]
[332696157,1721452327144,-2480.15,0.00034246,14]
[332696158,1721452327155,-696.41,0.00034246,14]
[332696159,1721452327164,-444.36535653,0.00034246,14]
[332696160,1721452327174,-500.0,0.00034246,14]
[332696161,1721452327183,-2104.4,0.00034246,14]
[332696162,1721452327193,-3078.84,0.00034246,14]
[332696163,1721452327202,-500.0,0.00034246,14]
[332696164,1721452327211,-703.93,0.00034246,14]
[332696165,1721452327221,-1047.59,0.00034246,14]
[332696166,1721452327230,-500.0,0.00034246,14]
[332696167,1721452327240,-3181.26,0.00034246,14]
[332696168,1721452327250,-500.0,0.00034246,14]
[332696169,1721452327261,-3280.76,0.00034246,14]
[332696170,1721452327271,-2612.66,0.00034246,14]
[332696171,1721452327279,-1071.06,0.00034246,14]
[332696172,1721452327289,-1049.87,0.00034246,14]
[332696173,1721452327298,-792.59,0.00034246,14]
[332696174,1721452327308,-1022.95,0.00034246,14]
[332696175,1721452327317,-6852.05,0.00034246,14]
[332696176,1721452327328,-421.78811802,0.00034246,14]
[332696177,1721452327337,-621.06,0.00034246,14]
[332696178,1721452327346,-500.0,0.00034246,14]
[332696179,1721452327356,-840.65,0.00034246,14]
[332696180,1721452327367,-500.0,0.00034246,14]
[332696181,1721452327377,-5155.85,0.00034246,14]
[332696182,1721452327386,-977.33,0.00034246,14]
[332696183,1721452327395,-2556.95,0.00034246,14]
[332696184,1721452327404,-7638.3,0.00034246,14]
[332696185,1721452327413,-2668.32,0.00034246,14]
[332696186,1721452327422,-680.34,0.00034246,14]
[332696187,1721452327432,-747.2,0.00034246,14]
[332696188,1721452327442,-939.37,0.00034246,14]
[332696189,1721452327452,-7834.82,0.00034246,14]
[332696190,1721452327461,-500.0,0.00034246,14]
[332696191,1721452327471,-2497.76,0.00034246,14]
[332696192,1721452327481,-500.0,0.00034246,14]
[332696193,1721452327491,-873.37,0.00034246,14]
[332696194,1721452327500,-1766.02,0.00034246,14]
[332696195,1721452327510,-1231.81,0.00034246,14]
[332696196,1721452327521,-1298.26,0.00034246,14]
[332696197,1721452327530,-2756.06,0.00034246,14]
[332696198,1721452327540,-500.0,0.00034246,14]
[332696199,1721452327549,-822.69,0.00034246,14]
[332696200,1721452327558,-3099.39,0.00034246,14]
[332696201,1721452327567,-1482.76,0.00034246,14]
[332696202,1721452327577,-675.73,0.00034246,14]
[332696203,1721452327586,-738.39,0.00034246,14]
[332696204,1721452327596,-1608.13,0.00034246,14]
[332696205,1721452327607,-6235.61,0.00034246,14]
[332696206,1721452327617,-1663.14,0.00034246,14]
[332696207,1721452327627,-3638.21,0.00034246,14]
[332696208,1721452327637,-1194.14,0.00034246,14]
[332696209,1721452327646,-500.0,0.00034246,14]
[332696210,1721452327655,-460.75054188,0.00034246,14]
[332696211,1721452327665,-500.0,0.00034246,14]
[332696212,1721452327675,-500.0,0.00034246,14]
[332696213,1721452327684,-6855.68,0.00034246,14]
[332696214,1721452327693,-500.0,0.00034246,14]
[332696215,1721452327703,-1491.07,0.00034246,14]
[332696216,1721452327712,-500.0,0.00034246,14]
[332696217,1721452327721,-500.0,0.00034246,14]
[332696218,1721452327730,-500.0,0.00034246,14]
[332696219,1721452327739,-3305.37,0.00034246,14]
[332696220,1721452327749,-500.0,0.00034246,14]
[332696221,1721452327758,-3485.91,0.00034246,14]
[332696222,1721452327768,-528.68243177,0.00034246,14]
[332696223,1721452327777,-3149.89,0.00034246,14]
[332696224,1721452327787,-558.69,0.00034246,14]
[332696225,1721452327796,-500.0,0.00034246,14]
[332696226,1721452327806,-500.0,0.00034246,14]
[332696227,1721452327815,-1857.46,0.00034246,14]
[332696228,1721452327824,-7942.67,0.00034246,14]
[332696229,1721452327834,-953.68,0.00034246,14]
[332696230,1721452327844,-500.0,0.00034246,14]
[332696231,1721452327853,-500.0,0.00034246,14]
[332696232,1721452327863,-1474.38,0.00034246,14]
[332696233,1721452327876,-1637.6,0.00034246,14]
[332696234,1721452327886,-3070.19,0.00034246,14]
[332696235,1721452327896,-678.65,0.00034246,14]
[332696236,1721452327906,-7567.17,0.00034246,14]
[332696237,1721452327915,-500.0,0.00034246,14]
[332696238,1721452327926,-1535.24,0.00034246,14]
[332696239,1721452327935,-500.0,0.00034246,14]
[332696240,1721452327946,-707.35,0.00034246,14]
[332696241,1721452327956,-500.0,0.00034246,14]
[332696242,1721452327966,-1075.68,0.00034246,14]
[332696243,1721452327975,-2237.11,0.00034246,14]
[332696244,1721452327985,-868.02,0.00034246,14]
[332696245,1721452327995,-500.0,0.00034246,14]
[332696246,1721452328004,-500.0,0.00034246,14]
[332696247,1721452328014,-500.0,0.00034246,14]
[332696248,1721452328023,-500.0,0.00034246,14]
[332696249,1721452328033,-4021.1,0.00034246,14]
[332696250,1721452328042,-4350.27,0.00034246,14]
[332696251,1721452328052,-2322.17,0.00034246,14]
[332696252,1721452328061,-2299.12,0.00034246,14]
[332696253,1721452328071,-4549.79,0.00034246,14]
[332696254,1721452328081,-500.0,0.00034246,14]
[332696255,1721452328091,-500.0,0.00034246,14]
[332696256,1721452328100,-727.88,0.00034246,14]
[332696257,1721452328109,-690.39,0.00034246,14]
[332696258,1721452328119,-2308.61,0.00034246,14]
[332696259,1721452328129,-500.0,0.00034246,14]
[332696260,1721452328138,-897.7,0.00034246,14]
[332696261,1721452328147,-2219.37,0.00034246,14]
[332696262,1721452328157,-2345.67,0.00034246,14]
[332696263,1721452328166,-714.91,0.00034246,14]
[332696264,1721452328175,-1447.59,0.00034246,14]
[332696265,1721452328185,-3887.56,0.00034246,14]
[332696266,1721452328194,-500.0,0.00034246,14]
[332696267,1721452328203,-1829.99,0.00034246,14]
[332696268,1721452328212,-500.0,0.00034246,14]
[332696269,1721452328221,-500.0,0.00034246,14]
[332696270,1721452328230,-500.0,0.00034246,14]
[332696271,1721452328239,-3908.15,0.00034246,14]
[332696272,1721452328248,-2286.14,0.00034246,14]
[332696273,1721452328257,-500.0,0.00034246,14]
[332696274,1721452328266,-2250.72,0.00034246,14]
[332696275,1721452328275,-507.65485958,0.00034246,14]
[332696276,1721452328284,-500.0,0.00034246,14]
[332696277,1721452328293,-1101.72,0.00034246,14]
[332696278,1721452328303,-3419.99,0.00034246,14]
[332696279,1721452328312,-1956.67,0.00034246,14]
[332696280,1721452328321,-500.0,0.00034246,14]
[332696281,1721452328330,-2493.86,0.00034246,14]
[332696282,1721452328339,-630.28,0.00034246,14]
[332696283,1721452328348,-500.0,0.00034246,14]
[332696284,1721452328357,-3643.83,0.00034246,14]
[332696285,1721452328366,-517.51633047,0.00034246,14]
[332696286,1721452328375,-500.0,0.00034246,14]
[332696287,1721452328384,-1806.09,0.00034246,14]
[332696288,1721452328393,-2478.72,0.00034246,14]
[332696289,1721452328402,-597.8631073,0.00034246,14]
[332696290,1721452328412,-500.0,0.00034246,14]
[332696291,1721452328422,-522.24,0.00034246,14]
[332696292,1721452328431,-1611.07,0.00034246,14]
[332696293,1721452328440,-4399.51,0.00034246,14]
[332696294,1721452328449,-2764.89,0.00034246,14]
[332696295,1721452328458,-500.0,0.00034246,14]
[332696296,1721452328467,-758.97,0.00034246,14]
[332696297,1721452328476,-1253.47,0.00034246,14]
[332696298,1721452328485,-2010.33,0.00034246,14]
[332696299,1721452328494,-4422.6,0.00034246,14]
[332696300,1721452328503,-500.0,0.00034246,14]
[332696301,1721452328512,-782.08,0.00034246,14]
[332696302,1721452328521,-514.80951157,0.00034246,14]
[332696303,1721452328530,-3857.12,0.00034246,14]
[332696304,1721452328539,-670.79,0.00034246,14]
[332696305,1721452328548,-500.0,0.00034246,14]
[332696306,1721452328557,-500.0,0.00034246,14]
[332696307,1721452328567,-738.12,0.00034246,14]
[332696308,1721452328576,-152.08433484,0.00034246,14]
[332696309,1721452328586,-500.0,0.00034246,14]
[332696310,1721452328596,-511.05,0.00034246,14]
[332696311,1721452328608,-500.0,0.00034246,14]
[332696312,1721452328618,-2474.15,0.00034246,14]
[332696313,1721452328628,-2276.68,0.00034246,14]
[332696314,1721452328638,-1039.92,0.00034246,2]
[332696315,1721452328647,-773.67,0.00034246,14]
[332696316,1721452328655,-500.0,0.00034246,14]
[332696317,1721452328665,-2869.88,0.00034246,14]
[332696318,1721452328675,-935.74,0.00034246,14]
[332696319,1721452328684,-1504.33,0.00034246,14]
[332696320,1721452328693,-500.0,0.00034246,14]
[332696321,1721452328703,-2544.71,0.00034246,14]
[332696322,1721452328712,-500.0,0.00034246,14]
[332696323,1721452328722,-643.79,0.00034246,14]
[332696324,1721452328731,-500.0,0.00034246,14]
[332696325,1721452328740,-1507.73,0.00034246,14]
[332696326,1721452328750,-2587.33,0.00034246,14]
[332696327,1721452328759,-1314.27,0.00034246,14]
[332696328,1721452328769,-500.0,0.00034246,14]
[332696329,1721452328778,-35635.82518082,0.000343,30]
[332696330,1721452329544,-67378.11874885,0.000343,30]
[332696331,1721452329554,-503.0,0.000343,19]
[332696332,1721452329563,-2475.84249606,0.000343,30]
[332696333,1721452329574,-231.68,0.000343,2]
[332696334,1721452329583,-225.75,0.000343,2]
[332696335,1721452329593,-159.61625139,0.00034349,7]
[332696336,1721452329604,-449.92182295,0.00034357,10]
[332696337,1721452329614,-151.64406532,0.00034362,7]
[332696338,1721452329623,-700.0,0.0003437,2]
[332696339,1721452329632,-400.0,0.0003437,2]
[332696340,1721452329642,-302.77504687,0.00034378,7]
[332696341,1721452329652,-166.66666668,0.00034379,7]
[332696342,1721452329661,-932.0,0.00034387,2]
[332696343,1721452329670,-231.68,0.000344,2]
[332696344,1721452329681,-977.75,0.00034403,30]
[332696345,1721452329690,-977.75,0.00034403,30]
[332696346,1721452329700,-157.98079194,0.00034412,7]
[332696347,1721452329709,-151.7227518,0.00034415,7]
[332696348,1721452329719,-152.65155601,0.00034441,7]
[332696349,1721452329730,-152.88663034,0.00034461,7]
[332696350,1721452329741,-441.45,0.00034463,2]
[332696351,1721452329752,-700.0,0.0003447,2]
[332696352,1721452329763,-400.0,0.0003447,2]
[332696353,1721452329774,-151.7227518,0.00034475,7]
[332696354,1721452329783,-2678.0,0.00034478,17]
[332696355,1721452329792,-492.0,0.000345,19]
[332696356,1721452329801,-258.0,0.000345,8]
[332696357,1721452329810,-258.0,0.000345,8]
[332696358,1721452329820,-517.0,0.000345,8]
[332696359,1721452329829,-500.0,0.00034519,30]
[332696360,1721452329838,-500.0,0.00034519,30]
[332696361,1721452329847,-500.0,0.00034519,30]
[332696362,1721452329856,-500.0,0.00034519,30]
[332696363,1721452329866,-500.0,0.00034519,30]
[332696364,1721452329875,-500.0,0.00034519,30]
[332696365,1721452329885,-500.0,0.00034519,30]
[332696366,1721452329894,-500.0,0.00034519,30]
[332696367,1721452329903,-500.0,0.00034519,30]
[332696368,1721452329913,-500.0,0.00034519,30]
[332696369,1721452329921,-500.0,0.00034519,30]
[332696370,1721452329931,-500.0,0.00034519,30]
[332696371,1721452329940,-500.0,0.00034519,30]
[332696372,1721452329949,-500.0,0.00034519,30]
[332696373,1721452329958,-500.0,0.00034519,30]
[332696374,1721452329967,-500.0,0.00034519,30]
[332696375,1721452329976,-500.0,0.00034519,30]
[332696376,1721452329985,-500.0,0.00034519,30]
[332696377,1721452329995,-500.0,0.00034519,30]
[332696378,1721452330004,-500.0,0.00034519,30]
[332696379,1721452330013,-1617.07,0.0003452,14]
[332696380,1721452330022,-500.0,0.0003452,14]
[332696381,1721452330031,-1022.34,0.0003452,14]
[332696382,1721452330040,-500.0,0.0003452,14]
[332696383,1721452330049,-667.24,0.0003452,14]
[332696384,1721452330059,-500.0,0.0003452,14]
[332696385,1721452330068,-703.85,0.0003452,14]
[332696386,1721452330077,-1004.77,0.0003452,14]
[332696387,1721452330086,-500.0,0.0003452,14]
[332696388,1721452330095,-500.0,0.0003452,14]
[332696389,1721452330104,-500.0,0.0003452,14]
[332696390,1721452330114,-755.54,0.0003452,14]
[332696391,1721452330122,-624.11,0.0003452,14]
[332696392,1721452330132,-500.0,0.0003452,14]
[332696393,1721452330141,-500.0,0.0003452,14]
[332696394,1721452330150,-500.0,0.0003452,14]
[332696395,1721452330159,-500.0,0.0003452,14]
[332696396,1721452330168,-500.0,0.0003452,14]
[332696397,1721452330178,-1361.11,0.0003452,14]
[332696398,1721452330187,-500.0,0.0003452,14]
[332696399,1721452330196,-500.0,0.0003452,14]
[332696400,1721452330206,-500.0,0.0003452,14]
[332696401,1721452330215,-500.0,0.0003452,14]
[332696402,1721452330224,-905.48,0.0003452,14]
[332696403,1721452330234,-500.0,0.0003452,14]
[332696404,1721452330244,-636.07,0.0003452,14]
[332696405,1721452330254,-575.11,0.0003452,14]
[332696406,1721452330263,-977.86,0.0003452,14]
[332696407,1721452330273,-539.28,0.0003452,14]
[332696408,1721452330281,-1018.11,0.0003452,14]
[332696409,1721452330290,-788.52,0.0003452,14]
[332696410,1721452330299,-217.08078728,0.0003452,14]
[332696411,1721452330308,-500.0,0.0003452,14]
[332696412,1721452330319,-663.27,0.0003452,14]
[332696413,1721452330330,-500.0,0.0003452,14]
[332696414,1721452330340,-500.0,0.0003452,14]
[332696415,1721452330352,-500.0,0.0003452,14]
[332696416,1721452330362,-500.0,0.0003452,14]
[332696417,1721452330371,-500.0,0.0003452,14]
[332696418,1721452330381,-817.64,0.0003452,14]
[332696419,1721452330390,-500.0,0.0003452,14]
[332696420,1721452330399,-600.63,0.0003452,14]
[332696421,1721452330408,-923.07,0.0003452,14]
[332696422,1721452330417,-520.79,0.0003452,14]
[332696423,1721452330426,-500.0,0.0003452,14]
[332696424,1721452330435,-500.0,0.0003452,14]
[332696425,1721452330445,-500.0,0.0003452,14]
[332696426,1721452330455,-500.0,0.0003452,14]
[332696427,1721452330464,-500.0,0.0003452,14]
[332696428,1721452330473,-500.0,0.0003452,14]
[332696429,1721452330482,-554.46,0.0003452,14]
[332696430,1721452330491,-500.0,0.0003452,14]
[332696431,1721452330500,-500.0,0.0003452,14]
[332696432,1721452330509,-500.0,0.0003452,14]
[332696433,1721452330518,-563.48,0.0003452,14]
[332696434,1721452330528,-621.29828394,0.0003452,14]
[332696435,1721452330539,-500.0,0.0003452,14]
[332696436,1721452330548,-689.0,0.0003452,14]
[332696437,1721452330558,-500.0,0.0003452,14]
[332696438,1721452330567,-500.0,0.0003452,14]
[332696439,1721452330576,-500.0,0.0003452,14]
[332696440,1721452330585,-500.0,0.0003452,14]
[332696441,1721452330594,-768.0,0.0003452,14]
[332696442,1721452330607,-500.0,0.0003452,14]
[332696443,1721452330616,-824.05,0.0003452,14]
[332696444,1721452330626,-500.0,0.0003452,14]
[332696445,1721452330635,-741.81,0.0003452,14]
[332696446,1721452330646,-500.0,0.0003452,14]
[332696447,1721452330655,-500.0,0.0003452,14]
[332696448,1721452330666,-642.24,0.0003452,14]
[332696449,1721452330676,-787.66,0.0003452,14]
[332696450,1721452330685,-500.0,0.0003452,14]
[332696451,1721452330694,-584.73,0.0003452,14]
[332696452,1721452330704,-500.0,0.0003452,14]
[332696453,1721452330713,-766.73,0.0003452,14]
[332696454,1721452330726,-684.63,0.0003452,14]
[332696455,1721452330735,-505.15320216,0.0003452,14]
[332696456,1721452330745,-507.36,0.0003452,14]
[332696457,1721452330754,-500.0,0.0003452,14]
[332696458,1721452330764,-500.0,0.0003452,14]
[332696459,1721452330774,-500.0,0.0003452,14]
[332696460,1721452330783,-500.0,0.0003452,14]
[332696461,1721452330793,-500.0,0.0003452,14]
[332696462,1721452330802,-500.0,0.0003452,14]
[332696463,1721452330812,-503.90107804,0.0003452,14]
[332696464,1721452330822,-773.96,0.0003452,14]
[332696465,1721452330831,-500.0,0.0003452,14]
[332696466,1721452330840,-887.87,0.0003452,14]
[332696467,1721452330850,-500.0,0.0003452,14]
[332696468,1721452330860,-500.0,0.0003452,14]
[332696469,1721452330870,-576.39,0.0003452,14]
[332696470,1721452330880,-500.0,0.0003452,14]
[332696471,1721452330889,-931.48,0.0003452,14]
[332696472,1721452330899,-545.9,0.0003452,14]
[332696473,1721452330909,-804.97,0.0003452,14]
[332696474,1721452330919,-500.0,0.0003452,14]
[332696475,1721452330928,-2058.6,0.0003452,14]
[332696476,1721452330938,-672.54,0.0003452,14]
[332696477,1721452330948,-1597.61,0.0003452,14]
[332696478,1721452330957,-500.0,0.0003452,14]
[332696479,1721452330966,-1557.77,0.0003452,14]
[332696480,1721452330976,-1136.23,0.0003452,14]
[332696481,1721452330985,-500.0,0.0003452,14]
[332696482,1721452330994,-1349.57,0.0003452,14]
[332696483,1721452331003,-850.4,0.0003452,14]
[332696484,1721452331013,-615.63,0.0003452,14]
[332696485,1721452331023,-500.0,0.0003452,14]
[332696486,1721452331034,-585.37,0.0003452,14]
[332696487,1721452331046,-1925.0,0.0003452,14]
[332696488,1721452331057,-500.0,0.0003452,14]
[332696489,1721452331067,-633.15,0.0003452,14]
[332696490,1721452331078,-1477.09,0.0003452,14]
[332696491,1721452331088,-955.64,0.0003452,14]
[332696492,1721452331098,-703.79,0.0003452,14]
[332696493,1721452331107,-500.0,0.0003452,14]
[332696494,1721452331117,-1257.46,0.0003452,14]
[332696495,1721452331129,-500.0,0.0003452,14]
[332696496,1721452331139,-1259.58,0.0003452,14]
[332696497,1721452331148,-808.34,0.0003452,14]
[332696498,1721452331158,-1237.13,0.0003452,14]
[332696499,1721452331168,-1144.31,0.0003452,14]
[332696500,1721452331178,-500.0,0.0003452,14]
[332696501,1721452331189,-741.83,0.0003452,14]
[332696502,1721452331201,-688.35,0.0003452,14]
[332696503,1721452331211,-500.0,0.0003452,14]
[332696504,1721452331221,-809.96,0.0003452,14]
[332696505,1721452331232,-1144.57,0.0003452,14]
[332696506,1721452331241,-1690.39,0.0003452,14]
[332696507,1721452331252,-500.0,0.0003452,14]
[332696508,1721452331263,-500.0,0.0003452,14]
[332696509,1721452331273,-1161.81,0.0003452,14]
[332696510,1721452331282,-500.0,0.0003452,14]
[332696511,1721452331292,-1958.12,0.0003452,14]
[332696512,1721452331302,-853.53,0.0003452,14]
[332696513,1721452331311,-500.0,0.0003452,14]
[332696514,1721452331321,-750.64,0.0003452,14]
[332696515,1721452331331,-500.0,0.0003452,14]
[332696516,1721452331340,-2258.69,0.0003452,14]
[332696517,1721452331350,-500.0,0.0003452,14]
[332696518,1721452331359,-500.0,0.0003452,14]
[332696519,1721452331369,-500.0,0.0003452,14]
[332696520,1721452331380,-500.0,0.0003452,14]
[332696521,1721452331390,-500.0,0.0003452,14]
[332696522,1721452331400,-569.38,0.0003452,14]
[332696523,1721452331410,-1031.87,0.0003452,14]
[332696524,1721452331420,-222.12083698,0.0003452,14]
[332696525,1721452331430,-835.76,0.0003452,14]
[332696526,1721452331440,-1061.35,0.0003452,14]
[332696527,1721452331449,-500.0,0.0003452,14]
[332696528,1721452331460,-500.0,0.0003452,14]
[332696529,1721452331469,-1119.4,0.0003452,14]
[332696530,1721452331479,-1376.73,0.0003452,14]
[332696531,1721452331489,-500.0,0.0003452,14]
[332696532,1721452331499,-634.42,0.0003452,14]
[332696533,1721452331509,-504.92383032,0.0003452,14]
[332696534,1721452331519,-937.2,0.0003452,14]
[332696535,1721452331528,-1180.46,0.0003452,14]
[332696536,1721452331538,-500.0,0.0003452,14]
[332696537,1721452331547,-1095.19,0.0003452,14]
[332696538,1721452331557,-1149.74,0.0003452,14]
[332696539,1721452331567,-945.13,0.0003452,14]
[332696540,1721452331577,-228.01198432,0.0003452,14]
[332696541,1721452331587,-1610.4,0.0003452,14]
[332696542,1721452331599,-514.45,0.0003452,14]
[332696543,1721452331610,-1429.72,0.0003452,14]
[332696544,1721452331619,-500.0,0.0003452,14]
[332696545,1721452331630,-1148.04,0.0003452,14]
[332696546,1721452331640,-1507.35,0.0003452,14]
[332696547,1721452331651,-1028.57,0.0003452,14]
[332696548,1721452331660,-726.07,0.0003452,14]
[332696549,1721452331670,-840.79,0.0003452,14]
[332696550,1721452331680,-500.0,0.0003452,14]
[332696551,1721452331690,-500.0,0.0003452,14]
[332696552,1721452331699,-500.0,0.0003452,14]
[332696553,1721452331709,-2112.88,0.0003452,14]
[332696554,1721452331718,-500.0,0.0003452,14]
[332696555,1721452331727,-500.0,0.0003452,14]
[332696556,1721452331737,-500.0,0.0003452,14]
[332696557,1721452331747,-500.0,0.0003452,14]
[332696558,1721452331756,-500.0,0.0003452,14]
[332696559,1721452331765,-500.0,0.0003452,14]
[332696560,1721452331775,-500.0,0.0003452,14]
[332696561,1721452331784,-500.0,0.0003452,14]
[332696562,1721452331794,-500.0,0.0003452,14]
[332696563,1721452331804,-819.09,0.0003452,14]
[332696564,1721452331813,-867.8,0.0003452,14]
[332696565,1721452331823,-1320.46,0.0003452,14]
[332696566,1721452331833,-1383.64,0.0003452,14]
[332696567,1721452331842,-1502.0,0.0003452,14]
[332696568,1721452331852,-500.0,0.0003452,14]
[332696569,1721452331862,-500.0,0.0003452,14]
[332696570,1721452331871,-500.0,0.0003452,14]
[332696571,1721452331882,-500.0,0.0003452,14]
[332696572,1721452331892,-1255.44,0.0003452,14]
[332696573,1721452331902,-500.0,0.0003452,14]
[332696574,1721452331911,-1033.38,0.0003452,14]
[332696575,1721452331922,-500.0,0.0003452,14]
[332696576,1721452331931,-500.0,0.0003452,14]
[332696577,1721452331941,-529.47,0.0003452,14]
[332696578,1721452331951,-500.0,0.0003452,14]
[332696579,1721452331961,-500.0,0.0003452,14]
[332696580,1721452331971,-500.0,0.0003452,14]
[332696581,1721452331981,-500.0,0.0003452,14]
[332696582,1721452331991,-500.0,0.0003452,14]